Cogmind - Beta 12 X1 @@@ ROGUE MODE // 2022.07.07 @ 13:23:39 Player: Plexion Result: Destroyed by G-34 Mercenary with Small Laser Performance ------------- Evolutions (0) 0 Regions Visited (2) 400 Robots Destroyed (25) 125 Value Destroyed (726) 726 Prototype IDs (0) 0 Alien Tech Used (0) 0 Bonus (0) 0 TOTAL SCORE: 1251 Bonus ------- None Cogmind --------- Core Integrity 0/250 Matter 300/300 Energy 98/100 System Corruption 0% Temperature Cool (7) Movement Treading (320) Ox2 Location -10/Mines Parts ------- > --- POWER (1) -------- (None) > --- PROPULSION (2) --- Light Treads > --- UTILITY (2) ------ Improved Heat Sink High-capacity Storage Unit > --- WEAPON (2) ------- Small Laser Mining Laser > --- INVENTORY (20) --- Improved Ion Engine Machine Analyzer Improved Terrain Scanner Improved Terrain Scan Processor Hardened Light Armor Plating Hardened Light Armor Plating Hardened Light Armor Plating Hardened Light Armor Plating Hardened Medium Armor Plating Peak State ------------ > --- POWER ------------ Improved Ion Engine > --- PROPULSION ------- Light Treads Light Treads > --- UTILITY ---------- Improved Heat Sink High-capacity Storage Unit > --- WEAPON ----------- Medium Laser Small Laser > --- INVENTORY -------- Improved Ion Engine Light Treads Light Treads Machine Analyzer Improved Terrain Scanner Improved Terrain Scan Processor Hardened Light Armor Plating Hardened Light Armor Plating Hardened Light Armor Plating Hardened Light Armor Plating Hardened Medium Armor Plating [Rating: 12] Favorites ----------- Power Improved Ion Engine Engine Improved Ion Engine Propulsion Light Treads Treads Light Treads Utility Improved Heat Sink Device Improved Heat Sink Storage High-capacity Storage Unit Weapon Assault Rifle Energy Gun Medium Laser Ballistic Gun Assault Rifle Special Weapon Mining Laser Build | -11 -10 -10 ------- Run | Scr Mat Min Slots Evolved . | . . . Power . | . . . Propulsion . | . . . Utility . | . . . Weapon . | . . . Parts Attached 19 | 7 6 6 Power 3 | 2 1 . Engine 3 | 2 1 . Core . | . . . Reactor . | . . . Propulsion 6 | 2 2 2 Treads 6 | 2 2 2 Leg . | . . . Wheel . | . . . Hover . | . . . Flight . | . . . Utility 4 | 1 3 . Device 1 | . 1 . Storage 3 | 1 2 . Processor . | . . . Hackware . | . . . Protection . | . . . Artifact . | . . . Weapon 6 | 2 . 4 Energy Gun 2 | . . 2 Energy Cannon . | . . . Ballistic Gun 2 | 2 . . Ballistic Cannon . | . . . Launcher . | . . . Special Weapon 2 | . . 2 Impact Weapon . | . . . Slashing Weapon . | . . . Piercing Weapon . | . . . Special Melee Weapon . | . . . Unidentified Prototypes . | . . . Parts Lost 8 | . . 8 Power 1 | . . 1 Propulsion 3 | . . 3 Utility . | . . . Weapon 4 | . . 4 Highest Loss Streak 4 | . . 4 To Critical Strikes . | . . . Average Slot Usage (%) 95 | . 95 95 Engine 13 | . 14 13 Treads 27 | . 28 27 Device 11 | . 9 14 Storage 14 | . 14 14 Energy Gun 9 | . . 17 Ballistic Gun 15 | . 28 5 Special Weapon 1 | . . 2 Naked Turns . | . . . Heaviest Build 52 | 14 52 52 Greatest Support 40 | 40 40 40 Greatest Overweight (x) 2 | . 1 2 Average Overweight (x) . | . . 1 Largest Inventory Capacity 20 | 8 20 20 Average Capacity 16 | 6 13 20 Most Carried 12 | 2 9 12 Average Carried 6 | 1 4 9 Final Capacity 20 | 8 20 20 Final Carried 9 | 2 8 9 Class Distribution -------------------- 100% | Mutant Dominant Class ---------------- Mutant | -10/Materials Mutant | -10/Mines Resources | -11 -10 -10 ----------- Run | Scr Mat Min Matter Collected 631 | 232 271 128 Remotely . | . . . Salvage Created 867 | . 362 505 Parts 51 | . 27 24 Haulers Intercepted 1 | . 1 . Recyclers Shooed 1 | . . 1 Parts Field Recycled . | . . . Retrieved Matter . | . . . Parts Self-Destructed . | . . . Prevented . | . . . Kills | -11 -10 -10 ------- Run | Scr Mat Min Combat Hostiles Destroyed 22 | . 8 14 Guns 21 | . 8 13 Cannons 1 | . . 1 Classes Destroyed 7 | . 6 1 Worker 1 | . 1 . Hauler 1 | . 1 . Operator 1 | . 1 . Watcher 1 | . 1 . Swarmer 3 | . 3 . Grunt 18 | . 5 13 Assembled 1 | . . 1 Best Kill Streak 4 | . 3 4 Combat Bots Only 4 | . 3 4 Max Kills in Single Turn 1 | . 1 1 Gunslinging . | . . . Exploded . | . . . Melee . | . . . Uniques/NPCs Destroyed . | . . . Combat | -11 -10 -10 -------- Run | Scr Mat Min Damage Taken 1445 | . 399 1046 Core 251 | . 57 194 Absorbed by Shields . | . . . Core Remaining (%) 100 | 100 . . Volleys Fired 91 | . 31 60 Largest 2 | . 2 2 Hottest 140 | . 40 140 Shots Fired 162 | . 62 100 Gun 160 | . 62 98 Cannon . | . . . Launcher . | . . . Special 2 | . . 2 Kinetic 87 | . 62 25 Thermal 75 | . . 75 Explosive . | . . . Electromagnetic . | . . . Robot Hit Streak 19 | . 10 19 Robot Miss Streak 3 | . 2 3 Penetration Max . | . . . Secondary Targets 4 | . 1 3 Max Gunslinging Chain 1 | . 1 1 Shots Hit Robots 124 | . 42 82 Core Hits 49 | . 21 28 Critical Kills . | . . . Critical Parts Destroyed 1 | . 1 . Critical Strikes 4 | . 1 3 Burn 3 | . . 3 Destroy 1 | . 1 . Melee Attacks . | . . . Impact . | . . . Slashing . | . . . Piercing . | . . . Sneak Attacks . | . . . Combat Hostiles . | . . . Follow-up Attacks . | . . . Damage Inflicted 1632 | . 555 1077 Guns 1584 | . 555 1029 Cannons . | . . . Explosions . | . . . Melee . | . . . Ramming . | . . . Kinetic 828 | . 555 273 Thermal 804 | . . 804 Explosive . | . . . Electromagnetic . | . . . Impact . | . . . Slashing . | . . . Piercing . | . . . Highest Corruption . | . . . Average Corruption . | . . . Corruption Purged . | . . . Corruption Blocked . | . . . Overload Shots . | . . . Overflow Damage . | . . . Projectiles . | . . . Explosions . | . . . Melee . | . . . Knockbacks . | . . . Impact . | . . . Kinetic . | . . . Secondary . | . . . Self-Inflicted Damage . | . . . Shots . | . . . Rammed . | . . . Targets Rammed . | . . . Kicked . | . . . Crushed . | . . . Highest Temperature 42 | . 2 42 Average Temperature 14 | . 2 16 Received Heat Transfer 782 | . 180 602 Siege Activations . | . . . Robots Corrupted . | . . . Combat Hostiles . | . . . Parts Fried . | . . . Impact Corruptions . | . . . Robots Melted . | . . . Combat Hostiles . | . . . Parts Melted 6 | . . 6 Heat Transferred 2367 | . . 2367 Parts Sabotaged . | . . . Parts Stolen . | . . . Parts Stripped . | . . . Power Chain Reactions . | . . . Missiles Intercepted . | . . . Alert | -11 -10 -10 ------- Run | Scr Mat Min Peak Influence 148 | . 148 110 Initial 2 | . . 2 Average 59 | . 70 55 Maximum Alert Level . | . . . Low Security (%) 100 | 100 100 100 Level 1 . | . . . Level 2 . | . . . Level 3 . | . . . Level 4 . | . . . Level 5 . | . . . High Security . | . . . Max Security . | . . . Squads Dispatched 2 | . 1 1 Investigation 1 | . . 1 Extermination . | . . . Reinforcement 1 | . 1 . Assault . | . . . Garrison . | . . . Intercept . | . . . Searches Triggered . | . . . Construction Impeded . | . . . Haulers Reinforced . | . . . Active Scanning Responses . | . . . Cargo Convoy Interrupts . | . . . Stealth | -11 -10 -10 --------- Run | Scr Mat Min Distress Signals 3 | . 1 2 Communications Jammed . | . . . Distress Signals . | . . . Times Spotted 34 | . 17 17 Peak Tracking Total 3 | . 3 3 Tactical Retreats 1 | . . 1 Traps | -11 -10 -10 ------- Run | Scr Mat Min Traps Triggered . | . . . Indirectly . | . . . Trap Hack Attempts . | . . . Triggered . | . . . Disarmed . | . . . Reprogrammed . | . . . Reused . | . . . Traps Extracted . | . . . Installed . | . . . Triggered . | . . . Machines | -11 -10 -10 ---------- Run | Scr Mat Min Machines Disabled 1 | . . 1 Max in Single Turn 1 | . . 1 Machines Sabotaged . | . . . Garrisons Compromised . | . . . Overloaded Fab Kills . | . . . Hacking | -11 -10 -10 --------- Run | Scr Mat Min Machines Accessed 1 | . . 1 Terminals . | . . . Fabricators . | . . . Repair Stations . | . . . Recycling Units . | . . . Scanalyzers . | . . . Garrison Access . | . . . Total Hacks 1 | . . 1 Successful 1 | . . 1 Failed . | . . . Catastrophic . | . . . Database Lockouts . | . . . Manual . | . . . Terminals . | . . . Fabricators . | . . . Repair Stations . | . . . Recycling Units . | . . . Scanalyzers . | . . . Garrison Access . | . . . Terminal Hacks 1 | . . 1 Open Door 1 | . . 1 Fabricator Hacks . | . . . Repair Station Hacks . | . . . Recycling Unit Hacks . | . . . Scanalyzer . | . . . Garrison Access Hacks . | . . . Unauthorized Hacks . | . . . Terminals . | . . . Fabricators . | . . . Repair Stations . | . . . Recycling Units . | . . . Scanalyzers . | . . . Garrison Access . | . . . Data Cores Recovered . | . . . Used . | . . . Hacking Detections . | . . . Full Trace Events . | . . . Feedback Events . | . . . Feedback Blocked . | . . . Robot Schematics Acquired . | . . . Robots Built . | . . . Authchips . | . . . Time . | . . . Total Robot Build Rating . | . . . Part Schematics Acquired . | . . . Parts Built . | . . . Authchips . | . . . Time . | . . . Total Part Build Rating . | . . . Parts Repaired . | . . . Time . | . . . Parts Recycled . | . . . Recycled Matter . | . . . Retrieved Matter . | . . . Retrieved Components . | . . . Parts Scanalyzed . | . . . Part Schematics Acquired . | . . . Parts Damaged . | . . . Bothacking | -11 -10 -10 ------------ Run | Scr Mat Min Used RIF Installer . | . . . Robots Hacked . | . . . Non-combat . | . . . Combat . | . . . Robot Hacks Applied . | . . . Relay Couplers Released . | . . . Fabnet Peak Effective % . | . . . Robots Rewired . | . . . Allies Hacked . | . . . Hacks Repelled . | . . . Allies | -11 -10 -10 -------- Run | Scr Mat Min Total Allies . | . . . Largest Group . | . . . Highest-Rated Group . | . . . Highest-Rated Ally . | . . . Total Orders . | . . . Ally Attacks . | . . . Total Damage . | . . . Kills . | . . . Allies Corrupted . | . . . Allies Melted . | . . . Intel | -11 -10 -10 ------- Run | Scr Mat Min Robot Analysis Total . | . . . Derelict Logs Recovered 1 | . . 1 Drone Launches . | . . . Drone Recoveries . | . . . Exploration | -11 -10 -10 ------------- Run | Scr Mat Min Turns Passed 2026 | 88 902 1036 Spaces Moved 784 | 51 385 348 Core 4 | 4 . . Treads 780 | 47 385 348 Legs . | . . . Wheels . | . . . Hover . | . . . Flight . | . . . Fastest Speed 50 | 50 160 240 Average Speed 205 | 151 181 240 Slowest Speed 320 | 160 240 320 Overloaded Moves . | . . . Propulsion Burnouts . | . . . Robots Hopped . | . . . Cave-ins Triggered . | . . . Exploration Rate (%) 42 | 5 74 47 Regions Visited 2 Branch Regions 1 Pre-discovered Areas 1 | . . 1 Known Exits Taken . | . . . Unknown Exits Taken 2 | 1 1 . Scrap Searched 1 | . . 1 Spaces Dug . | . . . Terrain Destroyed . | . . . Melee . | . . . Projectile . | . . . AOE . | . . . Terrain Rammed . | . . . Walls Destroyed . | . . . Machines Disabled . | . . . Actions | -11 -10 -10 --------- Run | Scr Mat Min Total 1028 | 58 527 443 Wait 117 | . 93 24 Move 782 | 50 384 348 Hop . | . . . Pick Up 13 | 1 7 5 Fast Attach 9 | 6 1 2 Attach 4 | . . 4 Detach . | . . . Swap 6 | 1 5 . Drop 6 | . 6 . Fire 91 | . 31 60 Melee . | . . . Ram . | . . . Kick . | . . . Crush . | . . . Escape Stasis . | . . . Rewire . | . . . Trap . | . . . Miscellaneous . | . . . Route ------- -11/Scrapyard -10/Materials (discovered 4 exits: [*Mat x2] / *Min x2) -10/Mines History --------- Turn | Location | Event 3 | -11/Scrapyard | Discovered new exit (range 16) 89 | -11/Scrapyard | Entered Materials 223 | -10/Materials | Discovered new exit (range 10) 318 | -10/Materials | Build established: Mutant 402 | -10/Materials | Discovered new exit (range 16) 568 | -10/Materials | Discovered new exit (range 12) 781 | -10/Materials | Discovered new exit (range 5) 991 | -10/Materials | Entered Mines 1191 | -10/Mines | Learned location of Storage (-7) 1224 | -10/Mines | Excavation squad dispatched 1224 | -10/Mines | A large section of the Mines collapsed 1394 | -10/Mines | Met a Derelict shopkeep closing up shop 1474 | -10/Mines | Excavation squad dispatched 1534 | -10/Mines | Core integrity fell below 50% 1724 | -10/Mines | Excavation squad dispatched 1797 | -10/Mines | Core integrity fell below 20% 1840 | -10/Mines | Lost 4 parts (2n2w) 1974 | -10/Mines | Excavation squad dispatched 2027 | -10/Mines | Destroyed by G-34 Mercenary with Small Laser Last Messages --------------- 01807_ T-07 Excavator is excavating. 01808_ U-05 Engineer lays Concrete. 01809_ Mining Laser destroyed. 01810_ U-05 Engineer lays Concrete. 01810_ T-07 Excavator is excavating. 01811_ U-05 Engineer lays Concrete. 01813_ T-07 Excavator is excavating. 01816_ U-05 Engineer lays Concrete. 01820_ G-34 Mercenary destroyed. 01822_ U-05 Engineer lays Concrete. 01822_ G-34 Mercenary destroyed. 01825_ Acquired 9 matter. 01825_ Acquired 1 matter. 01852_ Acquired Mining Laser. 01853_ Acquired 10 matter. 01858_ K-01 Serf collects debris. 01974_ ALERT: Derelict activity in mines confirmed. Dispatching additional escorted excavation squad. 02015_ Lgt. Treads destroyed. 02019_ Imp. Ion Engine destroyed. Map ----- +----------------------------------------------------+ | ?????????????????????????????????????????????????? | | ?????????????????????????????????????????????????? | | ?????????????????????????????????????????????????? | | ?????????????????????????????????????????????????? | | ?????????????????????????????????????????????????? | | ?????????????????????????????????????????????????? | | ?????????????????????????????????????????????????? | | ?????????????????????????????????????????????????? | | ?????????????????????????????????????????????????? | | ?????????????????????????????????????????????????? | | ?????????????????????????????????????????????????? | | ?????????????????????????????????????????????????? | | ?????????????????? ??????????????????????????????? | | ????????????????# ?????????????????????????????? | | ????????????????# ?????????????????????????????? | | ????????????????? ????????????????????????????? | | ?????????????????? ???????????????????????????? | | ??????????????????# ??????????????????????????? | | ?????????????##??## ??????????????????????????? | | ?????????????# ## ??????????????????????????? | | ????????????? ??####???????????????????? | | ????????????# ?## ##??????????????????? | | ?????????????# ## ##?????????????????? | | ????????????????? #?????????????????? | | ????????????????????? #?????????????????? | | ???????????????????????##@ #?????????????????? | | ??????????????????????## t ##?????????????????? | | ?????????????????????## k ##??????????????????? | | ?????????????????????# ##???????????????????? | | ?????????????????????# #????????????????????? | | ?????????????????????# ##????????????????????? | | ?????????????????????# r #?????????????????????? | | ?????????????????????# ##????????????????????? | | ?????????????????????# t"" g#????????????????????? | | ????????????????######g""" ##???????????????????? | | ????????????????# """ #???????????????????? | | ????????????????# #??????????????? | | ??????????????### ####### t #??????????????? | | ??????????????# #?????## ##### #??????????????? | | ??????????????# ###??????####????????????????????? | | ??????????????# #????????????????????????????????? | | ??????????????# ######???????????????????????????? | | ???#####??????# ## ? ###??????????????????????? | | ??## ##??#### ## ???????????????????????? | | ??# #### ## """ #????????????????????????? | | ???# ## """ #????????????????????????? | | ???## #### ##### """ #????????###?????????????? | | ???## #???# !%== #????????# ###??????????? | | ???# ! ########## """ #???????### ##?????????? | | ??## %##??# """ #??????##"## #?????????? | +----------------------------------------------------+ Best States ------------- Heat Dissipation 39 Energy Generation 12 Energy Capacity 265 Matter Stores 300 Matter Capacity 300 Sight Range 16 Terrain Scan Density 10 Evasion (%) 40 Recoil Reduction 2 Item Schematics ----------------- None Robot Schematics ------------------ None Fabricated ------------ Nothing Alien Tech Used ----------------- None Achievements -------------- None Challenges ------------ None Game ------ Seed QuantumEncryptedBattery Manual? 0 Play Time 00:10:33 Cumulative 249.9 hours Start 2022.07.07 @ 13:16:29 End 2022.07.07 @ 13:23:39 Sessions 1 Manual Loads 0 Difficulty Rogue Special Mode None Game No. 351 Rogue 264 Adventurer 87 Explorer 0 Win Type - Total 6 Types 3/0/2/1/0/0/0/0/0 Lore% 70 Gallery% 78 Achievement% 67 Wizard Run 0 Options --------- ASCII 0 Keyboard 1 Movement Numpad Keybinds 0 Fullscreen 1 Font 18/Smallcaps Map View 76x50 Tactical HUD 1 Map Filters NONE Filters NONE Steam 1 RUN: e2de1029-3001-4bb5-96b1-7057f08316f9